fUSD/lending_fUSD_20241023
["ID","MTS","AMOUNT","RATE_DAILY","PERIOD"]
[340694361,1729691449025,-500.0,0.00050172,120]
[340694362,1729691449034,-4332.17,0.00050172,120]
[340694363,1729691449043,-500.0,0.00050172,120]
[340694364,1729691449052,-3677.17,0.00050172,120]
[340694365,1729691449061,-500.0,0.00050172,120]
[340694366,1729691449071,-1171.42,0.00050172,120]
[340694367,1729691449080,-1003.52,0.00050172,120]
[340694368,1729691449089,-500.0,0.00050172,120]
[340694369,1729691449098,-153.042613,0.00050172,120]
[340694370,1729691449107,-402.470686,0.00050172,120]
[340694371,1729691449116,-500.0,0.00050172,120]
[340694372,1729691449127,-500.0,0.00050172,120]
[340694373,1729691449136,-573.031736,0.00050172,120]
[340694374,1729691449145,-500.0,0.00050172,120]
[340694375,1729691449154,-2953.34,0.00050172,120]
[340694376,1729691449163,-500.0,0.00050172,120]
[340694377,1729691449173,-21625.53,0.00050172,120]
[340694378,1729691449182,-1350.49,0.00050172,120]
[340694379,1729691449192,-500.0,0.00050172,120]
[340694380,1729691449202,-685.55,0.00050172,120]
[340694381,1729691449211,-1746.68,0.00050172,120]
[340694382,1729691449220,-500.0,0.00050172,120]
[340694383,1729691449229,-7984.63,0.00050172,21]
[340694384,1729691449241,-500.0,0.00050172,120]
[340694385,1729691449250,-1000.0,0.00050172,120]
[340694386,1729691449259,-500.0,0.00050172,120]
[340694387,1729691449267,-1489.42,0.00050172,120]
[340694388,1729691449276,-2543.92,0.00050172,120]
[340694389,1729691449286,-2091.74,0.00050172,120]
[340694390,1729691449296,-732.66,0.00050173,120]
[340694391,1729691449305,-500.0,0.00050173,120]
[340694392,1729691449315,-731.05,0.00050173,120]
[340694393,1729691449324,-500.0,0.00050173,120]
[340694394,1729691449334,-500.0,0.00050173,120]
[340694395,1729691449343,-500.0,0.00050173,120]
[340694396,1729691449352,-894.45,0.00050173,120]
[340694397,1729691449362,-500.0,0.00050173,120]
[340694398,1729691449372,-500.0,0.00050173,120]
[340694399,1729691449382,-500.0,0.00050173,120]
[340694400,1729691449392,-500.0,0.00050173,120]
[340694401,1729691449401,-500.0,0.00050173,120]
[340694402,1729691449410,-500.0,0.00050173,120]
[340694403,1729691449420,-500.0,0.00050173,120]
[340694404,1729691449430,-744.01,0.00050173,120]
[340694405,1729691449439,-500.0,0.00050173,120]
[340694406,1729691449450,-500.0,0.00050173,120]
[340694407,1729691449459,-500.0,0.00050173,120]
[340694408,1729691449468,-500.0,0.00050173,120]
[340694409,1729691449478,-515.02,0.00050173,120]
[340694410,1729691449487,-523.83593791,0.00050173,120]
[340694411,1729691449499,-500.0,0.00050173,120]
[340694412,1729691449508,-500.0,0.00050173,120]
[340694413,1729691449518,-500.0,0.00050173,120]
[340694414,1729691449529,-500.0,0.00050173,120]
[340694415,1729691449540,-637.9,0.00050173,120]
[340694416,1729691449550,-500.0,0.00050173,120]
[340694417,1729691449560,-500.0,0.00050173,120]
[340694418,1729691449570,-500.0,0.00050173,120]
[340694419,1729691449583,-780.02,0.00050173,120]
[340694420,1729691449593,-500.0,0.00050173,120]
[340694421,1729691449603,-500.0,0.00050173,120]
[340694422,1729691449613,-151.0,0.00050173,120]
[340694423,1729691449624,-500.0,0.00050173,120]
[340694424,1729691449634,-500.0,0.00050173,120]
[340694425,1729691449644,-500.0,0.00050173,120]
[340694426,1729691449655,-500.0,0.00050173,120]
[340694427,1729691449665,-500.0,0.00050173,120]
[340694428,1729691449676,-500.0,0.00050173,120]
[340694429,1729691449686,-151.0,0.00050173,120]
[340694430,1729691449696,-500.0,0.00050173,120]
[340694431,1729691449705,-1426.92,0.00050173,120]
[340694432,1729691449715,-500.0,0.00050173,120]
[340694433,1729691449726,-625.59,0.00050173,120]
[340694434,1729691449735,-500.0,0.00050173,120]
[340694435,1729691449748,-500.0,0.00050173,120]
[340694436,1729691449758,-500.0,0.00050173,120]
[340694437,1729691449767,-500.0,0.00050173,120]
[340694438,1729691449777,-500.0,0.00050173,120]
[340694439,1729691449788,-500.0,0.00050173,120]
[340694440,1729691449797,-500.0,0.00050173,120]
[340694441,1729691449807,-500.0,0.00050173,120]
[340694442,1729691449817,-500.0,0.00050173,120]
[340694443,1729691449827,-500.0,0.00050173,120]
[340694444,1729691449837,-500.0,0.00050173,120]
[340694445,1729691449847,-500.0,0.00050173,120]
[340694446,1729691449857,-500.0,0.00050173,120]
[340694447,1729691449867,-500.0,0.00050173,120]
[340694448,1729691449877,-500.0,0.00050173,120]
[340694449,1729691449887,-520.40946684,0.00050173,120]
[340694450,1729691449897,-319.57,0.00050173,120]
[340694451,1729691449907,-500.0,0.00050173,120]
[340694452,1729691449916,-500.0,0.00050173,120]
[340694453,1729691449926,-500.0,0.00050173,120]
[340694454,1729691449935,-500.0,0.00050173,120]
[340694455,1729691449945,-500.0,0.00050173,120]
[340694456,1729691449955,-500.0,0.00050173,120]
[340694457,1729691449964,-662.16,0.00050173,120]
[340694458,1729691449974,-518.51,0.00050173,120]
[340694459,1729691449983,-500.0,0.00050173,120]
[340694460,1729691449995,-500.0,0.00050173,120]
[340694461,1729691450006,-500.0,0.00050173,120]
[340694462,1729691450015,-500.0,0.00050173,120]
[340694463,1729691450025,-500.0,0.00050173,120]
[340694464,1729691450034,-500.0,0.00050173,120]
[340694465,1729691450045,-500.0,0.00050173,120]
[340694466,1729691450055,-500.0,0.00050173,120]
[340694467,1729691450064,-296.02582477,0.00050173,120]
[340694468,1729691450074,-1251.52,0.00050173,120]
[340694469,1729691450084,-500.0,0.00050173,120]
[340694470,1729691450094,-500.0,0.00050173,120]
[340694471,1729691450106,-500.0,0.00050173,120]
[340694472,1729691450115,-500.0,0.00050173,120]
[340694473,1729691450125,-1448.29,0.00050173,120]
[340694474,1729691450134,-500.0,0.00050173,120]
[340694475,1729691450144,-500.0,0.00050173,120]
[340694476,1729691450155,-500.0,0.00050173,120]
[340694477,1729691450165,-500.0,0.00050173,120]
[340694478,1729691450176,-500.0,0.00050173,120]
[340694479,1729691450188,-500.0,0.00050173,120]
[340694480,1729691450200,-500.0,0.00050173,120]
[340694481,1729691450210,-500.0,0.00050173,120]
[340694482,1729691450221,-531.48,0.00050173,120]
[340694483,1729691450232,-500.0,0.00050173,120]
[340694484,1729691450244,-512.18,0.00050173,120]
[340694485,1729691450254,-500.0,0.00050173,120]
[340694486,1729691450263,-3362.71,0.00050173,120]
[340694487,1729691450275,-500.0,0.00050173,120]
[340694488,1729691450288,-500.0,0.00050173,120]
[340694489,1729691450298,-500.0,0.00050173,120]
[340694490,1729691450309,-730.54,0.00050173,120]
[340694491,1729691450319,-500.0,0.00050173,120]
[340694492,1729691450329,-500.0,0.00050173,120]
[340694493,1729691450340,-500.0,0.00050173,120]
[340694494,1729691450350,-500.0,0.00050173,120]
[340694495,1729691450361,-500.0,0.00050173,120]
[340694496,1729691450371,-500.0,0.00050173,120]
[340694497,1729691450381,-500.0,0.00050173,120]
[340694498,1729691450391,-503.21685677,0.00050173,120]
[340694499,1729691450401,-831.29,0.00050173,120]
[340694500,1729691450410,-500.0,0.00050173,120]
[340694501,1729691450420,-500.0,0.00050173,120]
[340694502,1729691450429,-500.0,0.00050173,120]
[340694503,1729691450440,-500.0,0.00050173,120]
[340694504,1729691450450,-591.17,0.00050173,120]
[340694505,1729691450460,-500.0,0.00050173,120]
[340694506,1729691450469,-507.37210087,0.00050173,120]
[340694507,1729691450479,-500.0,0.00050173,120]
[340694508,1729691450489,-500.0,0.00050173,120]
[340694509,1729691450499,-500.0,0.00050173,120]
[340694510,1729691450509,-500.0,0.00050173,120]
[340694511,1729691450519,-500.0,0.00050173,120]
[340694512,1729691450528,-500.0,0.00050173,120]
[340694513,1729691450538,-500.0,0.00050173,120]
[340694514,1729691450548,-237.28171232,0.00050173,120]
[340694515,1729691450558,-500.0,0.00050173,120]
[340694516,1729691450568,-558.36,0.00050173,120]
[340694517,1729691450578,-972.62,0.00050173,120]
[340694518,1729691450587,-500.0,0.00050173,120]
[340694519,1729691450597,-500.0,0.00050173,120]
[340694520,1729691450607,-4500.25,0.00050173,120]
[340694521,1729691450617,-501.46215368,0.00050173,120]
[340694522,1729691450627,-872.5,0.00050173,120]
[340694523,1729691450637,-1016.47,0.00050173,120]
[340694524,1729691450646,-500.0,0.00050173,120]
[340694525,1729691450655,-500.0,0.00050173,120]
[340694526,1729691450665,-500.0,0.00050173,120]
[340694527,1729691450674,-2359.59,0.00050173,120]
[340694528,1729691450684,-500.0,0.00050173,120]
[340694529,1729691450694,-2640.22,0.00050173,120]
[340694530,1729691450704,-5436.64,0.00050173,120]
[340694531,1729691450714,-500.0,0.00050173,120]
[340694532,1729691450723,-500.0,0.00050173,120]
[340694533,1729691450733,-1934.131835,0.00050173,120]
[340694534,1729691450744,-1934.131835,0.00050173,120]
[340694535,1729691450754,-2910.4,0.00050173,120]
[340694536,1729691450764,-2127.62,0.00050173,120]
[340694537,1729691450773,-500.0,0.00050173,120]
[340694538,1729691450783,-1934.131835,0.00050173,120]
[340694539,1729691450792,-1934.131835,0.00050173,120]
[340694540,1729691450802,-500.0,0.00050173,120]
[340694541,1729691450811,-500.0,0.00050173,120]
[340694542,1729691450821,-3750.3,0.00050173,120]
[340694543,1729691450831,-980.37,0.00050173,120]
[340694544,1729691450841,-500.0,0.00050173,120]
[340694545,1729691450851,-684.18,0.00050173,120]
[340694546,1729691450861,-500.0,0.00050173,120]
[340694547,1729691450870,-500.0,0.00050173,120]
[340694548,1729691450880,-500.0,0.00050173,120]
[340694549,1729691450890,-500.0,0.00050173,120]
[340694550,1729691450899,-1581.21,0.00050173,120]
[340694551,1729691450909,-534.34377977,0.00050173,120]
[340694552,1729691450919,-865.01,0.00050173,120]
[340694553,1729691450928,-500.0,0.00050173,120]
[340694554,1729691450938,-500.0,0.00050173,120]
[340694555,1729691450948,-500.0,0.00050173,120]
[340694556,1729691450958,-500.0,0.00050173,120]
[340694557,1729691450968,-500.0,0.00050173,120]
[340694558,1729691450977,-1176.97,0.00050173,120]
[340694559,1729691450987,-500.0,0.00050173,120]
[340694560,1729691451000,-581.37,0.00050173,120]
[340694561,1729691451010,-500.0,0.00050173,120]
[340694562,1729691451019,-291.92433792,0.00050173,120]
[340694563,1729691451029,-500.0,0.00050173,120]
[340694564,1729691451038,-500.0,0.00050173,120]
[340694565,1729691451048,-500.0,0.00050173,120]
[340694566,1729691451058,-1266.18,0.00050173,120]
[340694567,1729691451067,-500.0,0.00050173,120]
[340694568,1729691451077,-614.39,0.00050173,120]
[340694569,1729691451086,-500.0,0.00050173,120]
[340694570,1729691451096,-500.0,0.00050173,120]
[340694571,1729691451105,-500.0,0.00050173,120]
[340694572,1729691451115,-3561.46,0.00050173,120]
[340694573,1729691451125,-1083.12,0.00050173,120]
[340694574,1729691451134,-500.0,0.00050173,120]
[340694575,1729691451144,-500.0,0.00050173,120]
[340694576,1729691451154,-3814.54,0.00050173,120]
[340694577,1729691451164,-573.02,0.00050173,120]
[340694578,1729691451173,-500.0,0.00050173,120]
[340694579,1729691451183,-150.0,0.00050184,7]
[340694580,1729691451192,-415.60992635,0.00050195,28]
[340694581,1729691451202,-150.0,0.00050216,7]
[340694582,1729691451211,-150.0,0.00050247,7]
[340694583,1729691451222,-500.0,0.00050262,120]
[340694584,1729691451231,-733.38,0.00050263,120]
[340694585,1729691451241,-500.0,0.00050263,120]
[340694586,1729691451252,-500.0,0.00050263,120]
[340694587,1729691451261,-526.88517854,0.00050263,120]
[340694588,1729691451271,-708.96,0.00050263,120]
[340694589,1729691451280,-500.0,0.00050263,120]
[340694590,1729691451290,-500.0,0.00050263,120]
[340694591,1729691451299,-500.0,0.00050263,120]
[340694592,1729691451309,-500.0,0.00050263,120]
[340694593,1729691451319,-776.39,0.00050263,120]
[340694594,1729691451329,-1558.2,0.00050263,120]
[340694595,1729691451339,-503.91,0.00050263,120]
[340694596,1729691451349,-500.0,0.00050263,120]
[340694597,1729691451359,-586.63,0.00050263,120]
[340694598,1729691451369,-500.0,0.00050263,120]
[340694599,1729691451380,-500.0,0.00050263,120]
[340694600,1729691451389,-450.26618051,0.00050263,120]
[340694601,1729691451399,-500.0,0.00050263,120]
[340694602,1729691451409,-500.0,0.00050263,120]
[340694603,1729691451419,-500.0,0.00050263,120]
[340694604,1729691451428,-500.0,0.00050263,120]
[340694605,1729691451438,-500.0,0.00050263,120]
[340694606,1729691451448,-500.0,0.00050263,120]
[340694607,1729691451458,-321.55054492,0.00050263,120]
[340694608,1729691451468,-504.36788337,0.00050263,120]
[340694609,1729691451478,-500.0,0.00050263,120]
[340694610,1729691451488,-500.0,0.00050263,120]
[340694611,1729691451498,-500.0,0.00050263,120]
[340694612,1729691451508,-500.0,0.00050263,120]
[340694613,1729691451517,-500.0,0.00050263,120]
[340694614,1729691451528,-500.0,0.00050263,120]
[340694615,1729691451538,-500.0,0.00050263,120]
[340694616,1729691451548,-500.0,0.00050263,120]
[340694617,1729691451559,-500.0,0.00050263,120]
[340694618,1729691451569,-500.0,0.00050263,120]
[340694619,1729691451582,-500.0,0.00050263,120]
[340694620,1729691451592,-500.0,0.00050263,120]
[340694621,1729691451602,-500.0,0.00050263,120]
[340694622,1729691451612,-500.0,0.00050263,120]
[340694623,1729691451623,-657.97,0.00050263,120]
[340694624,1729691451632,-500.0,0.00050263,120]
[340694625,1729691451642,-500.0,0.00050263,120]
[340694626,1729691451652,-2582.81,0.00050263,120]
[340694627,1729691451662,-500.0,0.00050263,120]
[340694628,1729691451672,-500.0,0.00050263,120]
[340694629,1729691451682,-500.0,0.00050263,120]
[340694630,1729691451692,-500.0,0.00050263,120]
[340694631,1729691451702,-500.0,0.00050263,120]
[340694632,1729691451711,-500.0,0.00050263,120]
[340694633,1729691451721,-574.76,0.00050263,120]
[340694634,1729691451731,-500.0,0.00050263,120]
[340694635,1729691451951,-500.0,0.00050263,120]
[340694636,1729691451962,-500.0,0.00050263,120]
[340694637,1729691451972,-300.0,0.00050263,120]
[340694638,1729691451981,-151.0,0.00050263,120]
[340694639,1729691451992,-500.0,0.00050263,120]
[340694640,1729691452001,-500.0,0.00050263,120]
[340694641,1729691452010,-500.0,0.00050263,120]
[340694642,1729691452020,-504.07553118,0.00050263,120]
[340694643,1729691452029,-500.0,0.00050263,120]
[340694644,1729691452038,-500.0,0.00050263,120]
[340694645,1729691452047,-500.0,0.00050263,120]
[340694646,1729691452057,-500.0,0.00050263,120]
[340694647,1729691452066,-500.0,0.00050263,120]
[340694648,1729691452075,-2258.71,0.00050263,120]
[340694649,1729691452085,-500.0,0.00050263,120]
[340694650,1729691452094,-529.68,0.00050263,120]
[340694651,1729691452103,-500.0,0.00050263,120]
[340694652,1729691452113,-500.0,0.00050263,120]
[340694653,1729691452122,-500.0,0.00050263,120]
[340694654,1729691452131,-500.0,0.00050263,120]
[340694655,1729691452141,-500.0,0.00050263,120]
[340694656,1729691452150,-500.0,0.00050263,120]
[340694657,1729691452159,-500.0,0.00050263,120]
[340694658,1729691452169,-500.0,0.00050263,90]
[340694659,1729691452178,-1602.66,0.00050263,120]
[340694660,1729691452188,-500.0,0.00050263,120]
[340694661,1729691452197,-500.0,0.00050263,120]
[340694662,1729691452207,-500.0,0.00050263,120]
[340694663,1729691452216,-500.0,0.00050263,120]
[340694664,1729691452225,-500.0,0.00050263,120]
[340694665,1729691452235,-500.0,0.00050263,120]
[340694666,1729691452245,-500.0,0.00050263,120]
[340694667,1729691452254,-500.0,0.00050263,120]
[340694668,1729691452263,-511.92,0.00050263,120]
[340694669,1729691452273,-500.0,0.00050263,120]
[340694670,1729691452282,-500.0,0.00050263,120]
[340694671,1729691452291,-910.87,0.00050263,120]
[340694672,1729691452300,-151.0,0.00050263,120]
[340694673,1729691452310,-500.0,0.00050263,120]
[340694674,1729691452319,-500.0,0.00050263,120]
[340694675,1729691452329,-500.0,0.00050263,120]
[340694676,1729691452339,-2357.8,0.00050263,120]
[340694677,1729691452348,-500.0,0.00050263,120]
[340694678,1729691452358,-980.54,0.00050263,120]
[340694679,1729691452367,-559.34697491,0.00050263,120]
[340694680,1729691452377,-500.0,0.00050263,120]
[340694681,1729691452386,-500.0,0.00050263,120]
[340694682,1729691452395,-500.0,0.00050263,120]
[340694683,1729691452405,-500.0,0.00050263,120]
[340694684,1729691452414,-577.99,0.00050263,120]
[340694685,1729691452423,-500.0,0.00050263,120]
[340694686,1729691452433,-1082.92,0.00050263,120]
[340694687,1729691452442,-500.0,0.00050263,120]
[340694688,1729691452451,-500.0,0.00050263,120]
[340694689,1729691452461,-151.0,0.00050263,120]
[340694690,1729691452470,-500.0,0.00050263,120]
[340694691,1729691452480,-500.0,0.00050263,120]
[340694692,1729691452490,-500.0,0.00050263,120]
[340694693,1729691452500,-500.0,0.00050263,120]
[340694694,1729691452510,-500.0,0.00050263,120]
[340694695,1729691452519,-500.0,0.00050263,120]
[340694696,1729691452529,-500.0,0.00050263,120]
[340694697,1729691452538,-500.0,0.00050263,120]
[340694698,1729691452547,-500.0,0.00050263,120]
[340694699,1729691452557,-500.0,0.00050263,120]
[340694700,1729691452567,-500.0,0.00050263,120]
[340694701,1729691452576,-500.0,0.00050263,120]
[340694702,1729691452585,-500.0,0.00050263,120]
[340694703,1729691452595,-500.0,0.00050263,120]
[340694704,1729691452605,-500.0,0.00050263,120]
[340694705,1729691452615,-402.32859716,0.00050263,120]
[340694706,1729691452625,-732.32,0.00050263,120]
[340694707,1729691452634,-695.49,0.00050263,120]
[340694708,1729691452644,-500.0,0.00050263,120]
[340694709,1729691452653,-500.0,0.00050263,120]
[340694710,1729691452663,-500.0,0.00050263,120]
[340694711,1729691452672,-500.0,0.00050263,120]
[340694712,1729691452681,-500.0,0.00050263,120]
[340694713,1729691452691,-500.0,0.00050263,120]
[340694714,1729691452701,-556.77,0.00050263,120]
[340694715,1729691452710,-855.28,0.00050263,120]
[340694716,1729691452720,-500.0,0.00050263,120]
[340694717,1729691452729,-500.0,0.00050263,120]
[340694718,1729691452739,-500.0,0.00050263,120]
[340694719,1729691452751,-956.59,0.00050263,120]
[340694720,1729691452760,-587.57,0.00050263,120]
[340694721,1729691452770,-500.0,0.00050263,120]
[340694722,1729691452780,-500.0,0.00050263,120]
[340694723,1729691452790,-500.0,0.00050263,120]
[340694724,1729691452799,-609.38,0.00050263,120]
[340694725,1729691452809,-500.0,0.00050263,120]
[340694726,1729691452819,-500.0,0.00050263,120]
[340694727,1729691452828,-500.0,0.00050263,120]
[340694728,1729691452837,-500.0,0.00050263,120]
[340694729,1729691452848,-500.0,0.00050263,120]
[340694730,1729691452857,-500.0,0.00050263,120]
[340694731,1729691452867,-523.8,0.00050263,120]
[340694732,1729691452878,-511.89,0.00050263,120]
[340694733,1729691452888,-500.0,0.00050263,120]
[340694734,1729691452898,-500.0,0.00050263,120]
[340694735,1729691452908,-500.0,0.00050263,120]
[340694736,1729691452917,-527.61,0.00050263,120]
[340694737,1729691452927,-500.0,0.00050263,120]
[340694738,1729691452937,-500.0,0.00050263,120]
[340694739,1729691452947,-500.0,0.00050263,120]
[340694740,1729691452956,-500.0,0.00050263,120]
[340694741,1729691452966,-500.0,0.00050263,120]
[340694742,1729691452975,-560.74870396,0.00050263,120]
[340694743,1729691452985,-500.0,0.00050263,120]
[340694744,1729691452995,-500.0,0.00050263,120]
[340694745,1729691453005,-1263.77,0.00050263,120]
[340694746,1729691453015,-500.0,0.00050263,120]
[340694747,1729691453025,-500.0,0.00050263,120]
[340694748,1729691453034,-500.0,0.00050263,120]
[340694749,1729691453045,-500.0,0.00050263,120]
[340694750,1729691453054,-500.0,0.00050263,120]
[340694751,1729691453064,-500.0,0.00050263,120]
[340694752,1729691453074,-500.0,0.00050263,120]
[340694753,1729691453084,-500.0,0.00050263,120]
[340694754,1729691453094,-500.0,0.00050263,120]
[340694755,1729691453103,-500.0,0.00050263,120]
[340694756,1729691453112,-360.52815342,0.00050263,120]
[340694757,1729691453122,-500.0,0.00050263,120]
[340694758,1729691453132,-500.0,0.00050263,120]
[340694759,1729691453142,-500.0,0.00050263,120]
[340694760,1729691453151,-500.0,0.00050263,120]
[340694761,1729691453160,-500.0,0.00050263,120]
[340694762,1729691453170,-500.0,0.00050263,120]
[340694763,1729691453179,-500.0,0.00050263,120]
[340694764,1729691453189,-500.0,0.00050263,120]
[340694765,1729691453200,-500.0,0.00050263,120]
[340694766,1729691453209,-500.0,0.00050263,120]
[340694767,1729691453218,-500.0,0.00050263,120]
[340694768,1729691453228,-500.0,0.00050263,120]
[340694769,1729691453238,-5503.91,0.00050263,120]
[340694770,1729691453249,-500.0,0.00050263,120]
[340694771,1729691453262,-500.0,0.00050263,120]
[340694772,1729691453271,-500.0,0.00050263,120]
[340694773,1729691453281,-500.0,0.00050263,120]
[340694774,1729691453291,-500.0,0.00050263,120]
[340694775,1729691453301,-500.0,0.00050263,120]
[340694776,1729691453310,-500.0,0.00050263,120]
[340694777,1729691453320,-500.0,0.00050263,120]
[340694778,1729691453329,-500.0,0.00050263,120]
[340694779,1729691453339,-500.0,0.00050263,120]
[340694780,1729691453348,-827.35,0.00050263,120]
[340694781,1729691453358,-500.0,0.00050263,120]
[340694782,1729691453367,-500.0,0.00050263,120]
[340694783,1729691453377,-500.0,0.00050263,120]
[340694784,1729691453387,-604.33,0.00050263,120]
[340694785,1729691453396,-500.0,0.00050263,120]
[340694786,1729691453406,-500.0,0.00050263,120]
[340694787,1729691453416,-549.74284614,0.00050263,120]
[340694788,1729691453426,-500.0,0.00050263,120]
[340694789,1729691453437,-500.0,0.00050263,120]
[340694790,1729691453447,-500.0,0.00050263,120]
[340694791,1729691453457,-500.0,0.00050263,120]
[340694792,1729691453466,-500.0,0.00050263,120]
[340694793,1729691453476,-500.0,0.00050263,120]
[340694794,1729691453486,-500.0,0.00050263,120]
[340694795,1729691453497,-500.0,0.00050263,120]
[340694796,1729691453506,-500.0,0.00050263,120]
[340694797,1729691453516,-500.0,0.00050263,120]
[340694798,1729691453526,-500.0,0.00050263,120]
[340694799,1729691453536,-500.0,0.00050263,120]
[340694800,1729691453545,-500.0,0.00050263,120]
[340694801,1729691453555,-500.0,0.00050263,120]
[340694802,1729691453565,-538.75,0.00050263,120]
[340694803,1729691453576,-1134.89,0.00050263,120]
[340694804,1729691453586,-512.86,0.00050263,120]
[340694805,1729691453596,-1213.11,0.00050263,120]
[340694806,1729691453605,-521.83,0.00050263,120]
[340694807,1729691453615,-2147.87,0.00050263,120]
[340694808,1729691453625,-1080.65,0.00050263,120]
[340694809,1729691453635,-500.0,0.00050263,120]
[340694810,1729691453644,-500.0,0.00050263,120]
[340694811,1729691453655,-500.0,0.00050263,120]
[340694812,1729691453664,-500.0,0.00050263,120]
[340694813,1729691453673,-556.45,0.00050263,120]
[340694814,1729691453683,-500.0,0.00050263,120]
[340694815,1729691453693,-1934.131835,0.00050263,120]
[340694816,1729691453703,-1934.131831,0.00050263,120]
[340694817,1729691453713,-3205.68,0.00050263,120]
[340694818,1729691453723,-500.0,0.00050263,120]
[340694819,1729691453733,-500.0,0.00050263,120]
[340694820,1729691453743,-939.73,0.00050263,120]
[340694821,1729691453752,-541.4,0.00050263,120]
[340694822,1729691453761,-597.57,0.00050263,120]
[340694823,1729691453771,-500.0,0.00050263,120]
[340694824,1729691453780,-2697.86,0.00050263,120]
[340694825,1729691453790,-500.0,0.00050263,120]
[340694826,1729691453799,-500.0,0.00050263,120]
[340694827,1729691453808,-500.0,0.00050263,120]
[340694828,1729691453817,-500.0,0.00050263,120]
[340694829,1729691453827,-500.0,0.00050263,120]
[340694830,1729691453837,-500.0,0.00050263,120]
[340694831,1729691453847,-851.87,0.00050263,120]
[340694832,1729691453856,-500.0,0.00050263,14]
[340694833,1729691453866,-1936.62,0.00050263,120]
[340694834,1729691453876,-500.0,0.00050263,120]
[340694835,1729691453886,-500.0,0.00050263,120]
[340694836,1729691453895,-500.0,0.00050263,120]
[340694837,1729691453905,-1108.74,0.00050263,120]
[340694838,1729691453914,-500.0,0.00050263,120]
[340694839,1729691453923,-662.72,0.00050263,120]
[340694840,1729691453933,-500.0,0.00050263,120]
[340694841,1729691453942,-500.0,0.00050263,120]
[340694842,1729691453952,-500.0,0.00050263,120]
[340694843,1729691453961,-500.0,0.00050263,120]
[340694844,1729691453970,-500.0,0.00050263,120]
[340694845,1729691453980,-500.0,0.00050263,120]
[340694846,1729691453990,-513.83,0.00050263,120]
[340694847,1729691454000,-500.0,0.00050263,120]
[340694848,1729691454009,-500.0,0.00050263,120]
[340694849,1729691454019,-500.0,0.00050263,120]
[340694850,1729691454029,-216.72841288,0.00050263,120]
[340694851,1729691454038,-500.0,0.00050263,120]
[340694852,1729691454047,-831.37,0.00050263,120]
[340694853,1729691454057,-813.6,0.00050263,120]
[340694854,1729691454066,-517.89,0.00050263,120]
[340694855,1729691454076,-500.0,0.00050263,120]
[340694856,1729691454085,-500.0,0.00050263,120]
[340694857,1729691454095,-1035.99,0.00050263,120]
[340694858,1729691454105,-592.79,0.00050263,120]
[340694859,1729691454114,-500.0,0.00050263,120]
[340694860,1729691454124,-500.0,0.00050263,120]